[Event "Early-Titled-Tuesday-Blitz-April-02-2024"]
[Site "Chess.com"]
[Date "2024.04.02"]
[Round "2"]
[White "Aleksandar-Topalov"]
[Black "Kostya0705"]
[Result "0-1"]
[WhiteElo "2344"]
[BlackElo "2567"]
[TimeControl "180+1"]
[EndTime "8:15:35 PDT"]
[Termination "Kostya0705 won by resignation"]

1. b3 {[%clk 0:03:00.9]} 1... b5 {[%clk 0:02:58.5]} 2. Bb2 {[%clk 0:02:57.8]}
2... Bb7 {[%clk 0:02:58.9]} 3. Nf3 {[%clk 0:02:55.1]} 3... Nf6 {[%clk 0:02:59]}
4. e3 {[%clk 0:02:49.1]} 4... a6 {[%clk 0:02:58.8]} 5. a3 {[%clk 0:02:47.8]}
5... e6 {[%clk 0:02:58.6]} 6. c4 {[%clk 0:02:45.6]} 6... bxc4 {[%clk 0:02:57.1]}
7. bxc4 {[%clk 0:02:45]} 7... Be7 {[%clk 0:02:57.7]} 8. Be2 {[%clk 0:02:44.4]}
8... O-O {[%clk 0:02:58.1]} 9. O-O {[%clk 0:02:44.4]} 9... c5 {[%clk 0:02:56.1]}
10. d3 {[%clk 0:02:43.6]} 10... Nc6 {[%clk 0:02:55.3]} 11. Nbd2 {[%clk
0:02:41.1]} 11... Qc7 {[%clk 0:02:54.7]} 12. Rb1 {[%clk 0:02:39.3]} 12... Rab8
{[%clk 0:02:54.2]} 13. Qc2 {[%clk 0:02:36.3]} 13... Rfd8 {[%clk 0:02:51.6]} 14.
Rfc1 {[%clk 0:02:35.3]} 14... h6 {[%clk 0:02:50.7]} 15. h3 {[%clk 0:02:20.1]}
15... d6 {[%clk 0:02:49.3]} 16. Bc3 {[%clk 0:02:13.7]} 16... Nd7 {[%clk
0:02:47.6]} 17. Rb2 {[%clk 0:02:12.4]} 17... Bf6 {[%clk 0:02:48.1]} 18. Rcb1
{[%clk 0:02:12.2]} 18... Ba8 {[%clk 0:02:46.7]} 19. Bxf6 {[%clk 0:02:00.1]}
19... Nxf6 {[%clk 0:02:46.3]} 20. Qa4 {[%clk 0:01:59.6]} 20... Qa7 {[%clk
0:02:41.7]} 21. Nb3 {[%clk 0:01:41.7]} 21... e5 {[%clk 0:02:35.5]} 22. Nfd2
{[%clk 0:01:36.6]} 22... Ne7 {[%clk 0:02:23.7]} 23. Na5 {[%clk 0:01:26.1]} 23...
e4 {[%clk 0:02:21.8]} 24. dxe4 {[%clk 0:01:17.7]} 24... Nxe4 {[%clk 0:02:20.9]}
25. Nxe4 {[%clk 0:01:17]} 25... Bxe4 {[%clk 0:02:21.8]} 26. Rxb8 {[%clk
0:01:01.5]} 26... Rxb8 {[%clk 0:02:22.7]} 27. Rd1 {[%clk 0:00:54.7]} 27... Rb2
{[%clk 0:02:16.2]} 28. Qe8+ {[%clk 0:00:30.6]} 28... Kh7 {[%clk 0:02:15.7]} 29.
Bd3 {[%clk 0:00:21.3]} 29... Bxd3 {[%clk 0:02:12.7]} 30. Rxd3 {[%clk 0:00:21.3]}
30... Qc7 {[%clk 0:02:10.9]} 31. Nb3 {[%clk 0:00:18.9]} 31... Rb1+ {[%clk
0:02:10.4]} 32. Kh2 {[%clk 0:00:18]} 32... d5+ {[%clk 0:02:11.1]} 33. g3 {[%clk
0:00:18.4]} 33... dxc4 {[%clk 0:02:11.4]} 34. Rd7 {[%clk 0:00:17.8]} 34... Qc6
{[%clk 0:02:11.7]} 0-1

[Event "Early-Titled-Tuesday-Blitz-April-02-2024"]
[Site "Chess.com"]
[Date "2024.04.02"]
[Round "2"]
[White "GOGIEFF"]
[Black "AlexanderKing"]
[Result "1-0"]
[WhiteElo "3010"]
[BlackElo "2637"]
[TimeControl "180+1"]
[EndTime "8:15:37 PDT"]
[Termination "GOGIEFF won by resignation"]

1. c4 {[%clk 0:03:00.9]} 1... e6 {[%clk 0:02:59.9]} 2. d4 {[%clk 0:02:59.5]}
2... d5 {[%clk 0:03:00.5]} 3. Nc3 {[%clk 0:03:00.1]} 3... c5 {[%clk 0:03:00.8]}
4. e3 {[%clk 0:03:00]} 4... Nf6 {[%clk 0:03:00.9]} 5. Nf3 {[%clk 0:03:00.4]}
5... a6 {[%clk 0:03:01.6]} 6. a3 {[%clk 0:02:49.1]} 6... dxc4 {[%clk 0:03:00.9]}
7. Bxc4 {[%clk 0:02:48.6]} 7... b5 {[%clk 0:03:01.6]} 8. Ba2 {[%clk 0:02:49.1]}
8... Bb7 {[%clk 0:03:02.2]} 9. O-O {[%clk 0:02:48.6]} 9... Nbd7 {[%clk
0:02:46.5]} 10. Qe2 {[%clk 0:02:48.5]} 10... Bd6 {[%clk 0:02:39.8]} 11. Rd1
{[%clk 0:02:45.6]} 11... Qc7 {[%clk 0:02:31.5]} 12. dxc5 {[%clk 0:02:36.4]}
12... Nxc5 {[%clk 0:02:30.6]} 13. b4 {[%clk 0:02:33.1]} 13... Nce4 {[%clk
0:01:40.3]} 14. Nxe4 {[%clk 0:02:28.9]} 14... Nxe4 {[%clk 0:01:41.2]} 15. Bb2
{[%clk 0:02:29.3]} 15... O-O {[%clk 0:01:41.5]} 16. Rac1 {[%clk 0:02:29.2]}
16... Qe7 {[%clk 0:01:41]} 17. Ne5 {[%clk 0:02:07.5]} 17... Rac8 {[%clk
0:01:33.5]} 18. f3 {[%clk 0:02:01.2]} 18... Nf6 {[%clk 0:01:33.5]} 19. e4 {[%clk
0:01:50.3]} 19... Bb8 {[%clk 0:00:57.1]} 20. Nd3 {[%clk 0:01:37.4]} 20... Ba7+
{[%clk 0:00:50.3]} 21. Kh1 {[%clk 0:01:37.7]} 21... Nd7 {[%clk 0:00:47.9]} 22.
Qe1 {[%clk 0:01:26.5]} 22... Qg5 {[%clk 0:00:32.2]} 23. Qg3 {[%clk 0:01:23.8]}
23... Qxg3 {[%clk 0:00:31.8]} 24. hxg3 {[%clk 0:01:24.7]} 24... Rxc1 {[%clk
0:00:29.3]} 25. Nxc1 {[%clk 0:01:24.7]} 25... Rc8 {[%clk 0:00:30.2]} 26. Rxd7
{[%clk 0:01:24]} 1-0

[Event "Early-Titled-Tuesday-Blitz-April-02-2024"]
[Site "Chess.com"]
[Date "2024.04.02"]
[Round "2"]
[White "mishanick"]
[Black "AsterPhoenix"]
[Result "1-0"]
[WhiteElo "3053"]
[BlackElo "2652"]
[TimeControl "180+1"]
[EndTime "8:15:46 PDT"]
[Termination "mishanick won by resignation"]

1. d4 {[%clk 0:03:00.9]} 1... Nf6 {[%clk 0:02:57.1]} 2. c4 {[%clk 0:03:01.2]}
2... e6 {[%clk 0:02:56.7]} 3. Nc3 {[%clk 0:03:02]} 3... d5 {[%clk 0:02:56.9]} 4.
Bg5 {[%clk 0:03:01]} 4... dxc4 {[%clk 0:02:56.8]} 5. e3 {[%clk 0:03:00.3]} 5...
a6 {[%clk 0:02:56.7]} 6. Bxc4 {[%clk 0:02:43.8]} 6... b5 {[%clk 0:02:56.8]} 7.
Qf3 {[%clk 0:02:44.1]} 7... Ra7 {[%clk 0:02:56.6]} 8. Bb3 {[%clk 0:02:44.7]}
8... Bb7 {[%clk 0:02:47.4]} 9. Qh3 {[%clk 0:02:44.6]} 9... c5 {[%clk 0:02:45.4]}
10. Nf3 {[%clk 0:02:43]} 10... Nbd7 {[%clk 0:02:40.4]} 11. Rd1 {[%clk 0:02:41]}
11... c4 {[%clk 0:02:38.5]} 12. Bc2 {[%clk 0:02:41.5]} 12... b4 {[%clk
0:02:23.4]} 13. Bxf6 {[%clk 0:02:26.7]} 13... gxf6 {[%clk 0:01:58.2]} 14. Ne4
{[%clk 0:02:24.7]} 14... b3 {[%clk 0:01:50.8]} 15. axb3 {[%clk 0:02:24.5]} 15...
cxb3 {[%clk 0:01:51.7]} 16. Bb1 {[%clk 0:02:23.9]} 16... Qa5+ {[%clk 0:01:40.1]}
17. Nfd2 {[%clk 0:02:23]} 17... f5 {[%clk 0:01:18.8]} 18. Nc3 {[%clk 0:02:19.2]}
18... Rg8 {[%clk 0:01:17]} 19. d5 {[%clk 0:02:07.1]} 19... Nf6 {[%clk
0:01:08.4]} 20. O-O {[%clk 0:02:03.7]} 20... Nxd5 {[%clk 0:01:04.8]} 21. Nxd5
{[%clk 0:02:03.7]} 21... Bxd5 {[%clk 0:01:03.8]} 22. e4 {[%clk 0:02:04.2]} 22...
fxe4 {[%clk 0:00:35.8]} 23. Nxe4 {[%clk 0:02:02.7]} 23... Be7 {[%clk 0:00:26.9]}
24. Qxh7 {[%clk 0:02:01.9]} 24... Kf8 {[%clk 0:00:26.1]} 25. Qh6+ {[%clk
0:01:58.1]} 25... Rg7 {[%clk 0:00:22.2]} 26. Rc1 {[%clk 0:01:48.5]} 26... Ra8
{[%clk 0:00:19.4]} 27. Rc3 {[%clk 0:01:44.4]} 27... Bxe4 {[%clk 0:00:14.7]} 28.
Bxe4 {[%clk 0:01:45.3]} 28... Rd8 {[%clk 0:00:12.9]} 29. Rg3 {[%clk 0:01:44]}
29... Qe5 {[%clk 0:00:12.7]} 30. Qh8+ {[%clk 0:01:43.9]} 1-0

[Event "Early-Titled-Tuesday-Blitz-April-02-2024"]
[Site "Chess.com"]
[Date "2024.04.02"]
[Round "2"]
[White "Vasily_IM"]
[Black "JCVanDamme10"]
[Result "1-0"]
[WhiteElo "2556"]
[BlackElo "2342"]
[TimeControl "180+1"]
[EndTime "8:15:46 PDT"]
[Termination "Vasily_IM won by checkmate"]

1. d4 {[%clk 0:02:58.8]} 1... d5 {[%clk 0:02:59]} 2. c4 {[%clk 0:02:57.6]} 2...
c6 {[%clk 0:02:59.1]} 3. Nf3 {[%clk 0:02:57.3]} 3... Nf6 {[%clk 0:02:59.6]} 4.
Nc3 {[%clk 0:02:57.1]} 4... e6 {[%clk 0:02:59.4]} 5. cxd5 {[%clk 0:02:56.6]}
5... exd5 {[%clk 0:02:57.8]} 6. Qc2 {[%clk 0:02:56.8]} 6... Bg4 {[%clk
0:02:56.6]} 7. Bg5 {[%clk 0:02:56.9]} 7... Nbd7 {[%clk 0:02:51.7]} 8. e3 {[%clk
0:02:56.2]} 8... Bxf3 {[%clk 0:02:50]} 9. gxf3 {[%clk 0:02:55.9]} 9... Be7
{[%clk 0:02:50.5]} 10. Bd3 {[%clk 0:02:55.4]} 10... h6 {[%clk 0:02:49.7]} 11.
Bh4 {[%clk 0:02:55]} 11... Qa5 {[%clk 0:02:44.7]} 12. O-O {[%clk 0:02:54.1]}
12... O-O {[%clk 0:02:41.6]} 13. Rab1 {[%clk 0:02:53.5]} 13... a6 {[%clk
0:02:37.5]} 14. a3 {[%clk 0:02:51.7]} 14... Rfe8 {[%clk 0:02:35.6]} 15. b4
{[%clk 0:02:51]} 15... Qd8 {[%clk 0:02:30.5]} 16. Rfc1 {[%clk 0:02:49.8]} 16...
Rc8 {[%clk 0:02:28.2]} 17. Na4 {[%clk 0:02:48.5]} 17... b5 {[%clk 0:02:23]} 18.
Nc3 {[%clk 0:02:43.4]} 18... Nb6 {[%clk 0:02:21.8]} 19. Bf5 {[%clk 0:02:38.8]}
19... Ra8 {[%clk 0:02:17.7]} 20. Bg3 {[%clk 0:02:31.1]} 20... Nc4 {[%clk
0:02:17.8]} 21. Ra1 {[%clk 0:02:27.1]} 21... Nh5 {[%clk 0:02:17.1]} 22. Rd1
{[%clk 0:02:20.4]} 22... Nxg3 {[%clk 0:02:15.7]} 23. hxg3 {[%clk 0:02:20.1]}
23... Bd6 {[%clk 0:02:14.5]} 24. e4 {[%clk 0:02:12.8]} 24... Qg5 {[%clk
0:02:03.4]} 25. e5 {[%clk 0:02:10.4]} 25... Bc7 {[%clk 0:02:01.7]} 26. f4 {[%clk
0:02:09.3]} 26... Qe7 {[%clk 0:01:59.7]} 27. Kg2 {[%clk 0:02:05.4]} 27... Bb6
{[%clk 0:01:56]} 28. Qe2 {[%clk 0:01:33.4]} 28... a5 {[%clk 0:01:54.9]} 29. Na2
{[%clk 0:01:03.4]} 29... Nxa3 {[%clk 0:01:48.6]} 30. bxa5 {[%clk 0:01:02.8]}
30... Rxa5 {[%clk 0:01:40.9]} 31. Nc1 {[%clk 0:00:56.5]} 31... Nc4 {[%clk
0:01:37.4]} 32. Rxa5 {[%clk 0:00:55]} 32... Bxa5 {[%clk 0:01:37.1]} 33. Nb3
{[%clk 0:00:50.7]} 33... Bb6 {[%clk 0:01:37.6]} 34. Bb1 {[%clk 0:00:49.3]} 34...
Ra8 {[%clk 0:01:32.4]} 35. Qd3 {[%clk 0:00:48.6]} 35... Ra3 {[%clk 0:01:31.5]}
36. Qh7+ {[%clk 0:00:48.1]} 36... Kf8 {[%clk 0:01:31.2]} 37. Qh8# {[%clk
0:00:48.3]} 1-0

[Event "Early-Titled-Tuesday-Blitz-April-02-2024"]
[Site "Chess.com"]
[Date "2024.04.02"]
[Round "2"]
[White "Kushch_Nikolai"]
[Black "tarno17"]
[Result "1-0"]
[WhiteElo "2449"]
[BlackElo "2154"]
[TimeControl "180+1"]
[EndTime "8:15:52 PDT"]
[Termination "Kushch_Nikolai won by resignation"]

1. Nf3 {[%clk 0:02:56.3]} 1... d5 {[%clk 0:02:59.8]} 2. d4 {[%clk 0:02:54.5]}
2... Nf6 {[%clk 0:02:59.3]} 3. c4 {[%clk 0:02:53.9]} 3... e6 {[%clk 0:02:58.6]}
4. Nc3 {[%clk 0:02:53.3]} 4... Be7 {[%clk 0:02:56.6]} 5. Bg5 {[%clk 0:02:52.5]}
5... O-O {[%clk 0:02:56.5]} 6. e3 {[%clk 0:02:51.4]} 6... h6 {[%clk 0:02:57.2]}
7. Bh4 {[%clk 0:02:50.8]} 7... b6 {[%clk 0:02:57.3]} 8. Qb3 {[%clk 0:02:49.5]}
8... Bb7 {[%clk 0:02:56.6]} 9. Bxf6 {[%clk 0:02:48.7]} 9... Bxf6 {[%clk
0:02:55.9]} 10. cxd5 {[%clk 0:02:48.9]} 10... exd5 {[%clk 0:02:52.3]} 11. Rd1
{[%clk 0:02:48.8]} 11... c6 {[%clk 0:02:46.3]} 12. Bd3 {[%clk 0:02:48.4]} 12...
Ba6 {[%clk 0:02:33.8]} 13. Bxa6 {[%clk 0:02:39]} 13... Nxa6 {[%clk 0:02:34.7]}
14. O-O {[%clk 0:02:38.9]} 14... Nc7 {[%clk 0:02:17.3]} 15. Rc1 {[%clk
0:02:38.3]} 15... Ne6 {[%clk 0:02:14.2]} 16. Rfd1 {[%clk 0:02:35.9]} 16... Ng5
{[%clk 0:01:34.6]} 17. Nxg5 {[%clk 0:02:30.4]} 17... Bxg5 {[%clk 0:01:35.5]} 18.
Ne2 {[%clk 0:02:30.2]} 18... Qd6 {[%clk 0:01:25.6]} 19. Ng3 {[%clk 0:02:25.7]}
19... f5 {[%clk 0:01:19.3]} 20. f4 {[%clk 0:02:03.2]} 20... Bh4 {[%clk
0:01:12.2]} 21. Nf1 {[%clk 0:02:00.8]} 21... Bf6 {[%clk 0:00:49.4]} 22. Nd2
{[%clk 0:01:59.1]} 22... g5 {[%clk 0:00:43.4]} 23. g3 {[%clk 0:01:56.5]} 23...
gxf4 {[%clk 0:00:43.3]} 24. gxf4 {[%clk 0:01:55.9]} 24... Kf7 {[%clk 0:00:40.7]}
25. Nf3 {[%clk 0:01:54.8]} 25... Rg8+ {[%clk 0:00:38.8]} 26. Kh1 {[%clk
0:01:55]} 26... Rg6 {[%clk 0:00:37.6]} 27. Ne5+ {[%clk 0:01:50]} 27... Bxe5
{[%clk 0:00:37.4]} 28. dxe5 {[%clk 0:01:49.8]} 28... Qe7 {[%clk 0:00:21]} 29.
Qd3 {[%clk 0:01:47]} 29... Ke6 {[%clk 0:00:15.9]} 30. Rxc6+ {[%clk 0:01:43.5]}
30... Kf7 {[%clk 0:00:15]} 31. Qxf5+ {[%clk 0:01:42.8]} 1-0

[Event "Early-Titled-Tuesday-Blitz-April-02-2024"]
[Site "Chess.com"]
[Date "2024.04.02"]
[Round "2"]
[White "Hikaru"]
[Black "Firegrizzly"]
[Result "1-0"]
[WhiteElo "3265"]
[BlackElo "2663"]
[TimeControl "180+1"]
[EndTime "8:15:53 PDT"]
[Termination "Hikaru won by resignation"]

1. Nf3 {[%clk 0:03:00.9]} 1... g6 {[%clk 0:02:58.2]} 2. e4 {[%clk 0:03:00.3]}
2... Bg7 {[%clk 0:02:56.2]} 3. d4 {[%clk 0:03:00]} 3... d6 {[%clk 0:02:56.1]} 4.
Bc4 {[%clk 0:02:57.8]} 4... c6 {[%clk 0:02:51.6]} 5. Qe2 {[%clk 0:02:57.5]} 5...
e6 {[%clk 0:02:51.1]} 6. e5 {[%clk 0:02:56.4]} 6... d5 {[%clk 0:02:50.7]} 7. Bb3
{[%clk 0:02:55.9]} 7... Ne7 {[%clk 0:02:46.5]} 8. h4 {[%clk 0:02:55.8]} 8... h6
{[%clk 0:02:41.1]} 9. c3 {[%clk 0:02:55.3]} 9... b6 {[%clk 0:02:38.4]} 10. Bc2
{[%clk 0:02:51.6]} 10... Ba6 {[%clk 0:02:38.4]} 11. Bd3 {[%clk 0:02:51.9]} 11...
Qc8 {[%clk 0:02:32.5]} 12. b3 {[%clk 0:02:49.8]} 12... Bxd3 {[%clk 0:02:31.4]}
13. Qxd3 {[%clk 0:02:50.7]} 13... Qa6 {[%clk 0:02:31.1]} 14. c4 {[%clk
0:02:51.3]} 14... Nd7 {[%clk 0:02:24.2]} 15. Nc3 {[%clk 0:02:51.1]} 15... Rd8
{[%clk 0:02:18.6]} 16. a4 {[%clk 0:02:50.9]} 16... dxc4 {[%clk 0:01:50.6]} 17.
Qe2 {[%clk 0:02:50.2]} 17... Nd5 {[%clk 0:01:42.6]} 18. Bd2 {[%clk 0:02:29.6]}
18... Nb4 {[%clk 0:01:31.2]} 19. O-O {[%clk 0:02:26.7]} 19... cxb3 {[%clk
0:01:29.1]} 20. Nb5 {[%clk 0:02:23.2]} 20... cxb5 {[%clk 0:01:23.7]} 21. axb5
{[%clk 0:02:23.3]} 21... Qb7 {[%clk 0:01:18.6]} 22. Bxb4 {[%clk 0:02:23.5]}
22... Bf8 {[%clk 0:01:18.9]} 23. Bxf8 {[%clk 0:02:23.4]} 23... Kxf8 {[%clk
0:01:18.6]} 24. Rfb1 {[%clk 0:02:23.9]} 24... Kg7 {[%clk 0:00:59.4]} 25. Rxb3
{[%clk 0:02:23.5]} 25... Ra8 {[%clk 0:00:56.2]} 26. Rba3 {[%clk 0:02:17.1]}
26... Rhc8 {[%clk 0:00:54.9]} 27. h5 {[%clk 0:02:14.7]} 27... g5 {[%clk
0:00:49.5]} 28. Qe3 {[%clk 0:02:14.9]} 28... Kh7 {[%clk 0:00:31.5]} 29. Nh2
{[%clk 0:02:05.4]} 29... Qd5 {[%clk 0:00:28.9]} 30. Ng4 {[%clk 0:02:05.2]} 30...
Kg7 {[%clk 0:00:17.9]} 31. f4 {[%clk 0:02:05]} 31... f5 {[%clk 0:00:15.8]} 32.
exf6+ {[%clk 0:02:00.6]} 32... Nxf6 {[%clk 0:00:15.8]} 33. Rxa7+ {[%clk
0:02:00.7]} 33... Rxa7 {[%clk 0:00:15.2]} 34. Rxa7+ {[%clk 0:02:01.6]} 34... Nd7
{[%clk 0:00:14.4]} 35. Qe5+ {[%clk 0:02:01.2]} 35... Qxe5 {[%clk 0:00:12.9]} 36.
Rxd7+ {[%clk 0:02:00.1]} 36... Kf8 {[%clk 0:00:11.7]} 37. fxe5 {[%clk 0:02:01]}
37... Rc1+ {[%clk 0:00:11]} 38. Kh2 {[%clk 0:02:01.2]} 38... Rh1+ {[%clk
0:00:11]} 39. Kxh1 {[%clk 0:02:00.7]} 39... Ke8 {[%clk 0:00:09.7]} 40. Nf6+
{[%clk 0:02:01]} 1-0

[Event "Early-Titled-Tuesday-Blitz-April-02-2024"]
[Site "Chess.com"]
[Date "2024.04.02"]
[Round "2"]
[White "XDPS"]
[Black "MalyDominator"]
[Result "1-0"]
[WhiteElo "2918"]
[BlackElo "2616"]
[TimeControl "180+1"]
[EndTime "8:15:57 PDT"]
[Termination "XDPS won by resignation"]

1. d4 {[%clk 0:03:00.9]} 1... Nf6 {[%clk 0:02:58.7]} 2. Nf3 {[%clk 0:02:51.5]}
2... d5 {[%clk 0:02:58.6]} 3. Bf4 {[%clk 0:02:51.3]} 3... c5 {[%clk 0:02:57.5]}
4. e3 {[%clk 0:02:51.4]} 4... e6 {[%clk 0:02:56.6]} 5. Nbd2 {[%clk 0:02:50.9]}
5... Bd6 {[%clk 0:02:56.7]} 6. c3 {[%clk 0:02:48.4]} 6... O-O {[%clk 0:02:55.7]}
7. Bd3 {[%clk 0:02:39.4]} 7... Qc7 {[%clk 0:02:51.2]} 8. Bxd6 {[%clk 0:02:37.3]}
8... Qxd6 {[%clk 0:02:51.1]} 9. Ne5 {[%clk 0:02:38.2]} 9... Nfd7 {[%clk
0:02:50.7]} 10. f4 {[%clk 0:02:38.4]} 10... Nc6 {[%clk 0:02:32.4]} 11. Qh5
{[%clk 0:02:32.1]} 11... Nf6 {[%clk 0:02:24.5]} 12. Qh4 {[%clk 0:02:29]} 12...
Ne7 {[%clk 0:01:58.1]} 13. g4 {[%clk 0:02:28.4]} 13... Ng6 {[%clk 0:01:53.7]}
14. Qg3 {[%clk 0:02:28.5]} 14... cxd4 {[%clk 0:01:48.7]} 15. exd4 {[%clk
0:02:28.4]} 15... Ne4 {[%clk 0:01:45.5]} 16. Nxe4 {[%clk 0:02:27.1]} 16... dxe4
{[%clk 0:01:45.6]} 17. Bxe4 {[%clk 0:02:27.4]} 17... Qb6 {[%clk 0:01:38.2]} 18.
O-O-O {[%clk 0:02:23.8]} 18... a5 {[%clk 0:01:32.3]} 19. f5 {[%clk 0:02:23.7]}
19... Nxe5 {[%clk 0:01:24.5]} 20. dxe5 {[%clk 0:02:23.4]} 20... exf5 {[%clk
0:01:22.7]} 21. gxf5 {[%clk 0:02:22.6]} 21... Qh6+ {[%clk 0:01:22.8]} 22. Kb1
{[%clk 0:02:21.8]} 22... a4 {[%clk 0:01:23.5]} 23. a3 {[%clk 0:02:21]} 23... Ra6
{[%clk 0:01:19.9]} 24. Rhg1 {[%clk 0:02:18.8]} 24... Rb6 {[%clk 0:01:13.2]} 25.
f6 {[%clk 0:02:11.8]} 25... g6 {[%clk 0:00:54.8]} 26. Bd5 {[%clk 0:02:02.8]}
26... Bf5+ {[%clk 0:00:47]} 27. Ka1 {[%clk 0:02:02.7]} 27... Bc2 {[%clk
0:00:43.6]} 28. Rd4 {[%clk 0:01:57.3]} 28... Bf5 {[%clk 0:00:38]} 29. Qf2 {[%clk
0:01:52.4]} 29... Rb5 {[%clk 0:00:12.9]} 30. Rh4 {[%clk 0:01:46.2]} 1-0

[Event "Early-Titled-Tuesday-Blitz-April-02-2024"]
[Site "Chess.com"]
[Date "2024.04.02"]
[Round "2"]
[White "dosto07"]
[Black "Alenzer"]
[Result "0-1"]
[WhiteElo "2466"]
[BlackElo "2197"]
[TimeControl "180+1"]
[EndTime "8:15:59 PDT"]
[Termination "Alenzer won by resignation"]

1. e4 {[%clk 0:03:00.9]} 1... c5 {[%clk 0:02:53.4]} 2. Nf3 {[%clk 0:02:58]} 2...
e6 {[%clk 0:02:52.1]} 3. c3 {[%clk 0:02:57.7]} 3... d5 {[%clk 0:02:49.8]} 4.
exd5 {[%clk 0:02:58]} 4... exd5 {[%clk 0:02:49.9]} 5. d4 {[%clk 0:02:58.1]} 5...
Nf6 {[%clk 0:02:50.5]} 6. Bb5+ {[%clk 0:02:58.6]} 6... Nc6 {[%clk 0:02:50.4]} 7.
O-O {[%clk 0:02:57.7]} 7... Bd6 {[%clk 0:02:50.5]} 8. dxc5 {[%clk 0:02:57.5]}
8... Bxc5 {[%clk 0:02:50.6]} 9. Re1+ {[%clk 0:02:57.9]} 9... Be6 {[%clk
0:02:51.1]} 10. Be3 {[%clk 0:02:57.5]} 10... Bd6 {[%clk 0:02:48.3]} 11. Nbd2
{[%clk 0:02:57.3]} 11... O-O {[%clk 0:02:47.5]} 12. Nb3 {[%clk 0:02:55.8]} 12...
Ne4 {[%clk 0:02:44.1]} 13. Nbd4 {[%clk 0:02:51.8]} 13... Bd7 {[%clk 0:02:22.2]}
14. Bd3 {[%clk 0:02:49.1]} 14... Ne5 {[%clk 0:02:17.5]} 15. Nxe5 {[%clk
0:02:48.6]} 15... Bxe5 {[%clk 0:02:17.1]} 16. Nf3 {[%clk 0:02:39.5]} 16... Bc7
{[%clk 0:02:00.4]} 17. Qb3 {[%clk 0:02:39.1]} 17... Bc6 {[%clk 0:01:59.3]} 18.
Rad1 {[%clk 0:02:38.2]} 18... Qf6 {[%clk 0:01:52.2]} 19. c4 {[%clk 0:02:15.8]}
19... dxc4 {[%clk 0:01:32.1]} 20. Qxc4 {[%clk 0:02:16]} 20... Nd6 {[%clk
0:01:24.3]} 21. Qf4 {[%clk 0:01:59.7]} 21... Qxb2 {[%clk 0:01:02.5]} 22. Bd4
{[%clk 0:01:59.7]} 22... Qxa2 {[%clk 0:00:54]} 23. Bxh7+ {[%clk 0:01:56.6]}
23... Kxh7 {[%clk 0:00:51.4]} 24. Ng5+ {[%clk 0:01:56.7]} 24... Kg8 {[%clk
0:00:48.2]} 25. Qh4 {[%clk 0:01:54.5]} 25... Qc2 {[%clk 0:00:44.1]} 26. Rc1
{[%clk 0:01:25.9]} 26... Qg6 {[%clk 0:00:41.9]} 27. Rc3 {[%clk 0:01:13.7]} 27...
Nf5 {[%clk 0:00:37.6]} 28. Qf4 {[%clk 0:01:11.9]} 28... Bxf4 {[%clk 0:00:35.7]}
0-1

[Event "Early-Titled-Tuesday-Blitz-April-02-2024"]
[Site "Chess.com"]
[Date "2024.04.02"]
[Round "2"]
[White "ChainedDowntohell"]
[Black "DarZay"]
[Result "1-0"]
[WhiteElo "2550"]
[BlackElo "2339"]
[TimeControl "180+1"]
[EndTime "8:16:01 PDT"]
[Termination "ChainedDowntohell won by resignation"]

1. d4 {[%clk 0:02:45.8]} 1... d5 {[%clk 0:02:59.4]} 2. c4 {[%clk 0:02:45.5]}
2... e6 {[%clk 0:02:57.4]} 3. Nc3 {[%clk 0:02:43.4]} 3... Be7 {[%clk 0:02:56.7]}
4. Nf3 {[%clk 0:02:37.9]} 4... Nf6 {[%clk 0:02:55.6]} 5. e3 {[%clk 0:02:37.7]}
5... O-O {[%clk 0:02:54.9]} 6. a3 {[%clk 0:02:35]} 6... c5 {[%clk 0:02:54.1]} 7.
dxc5 {[%clk 0:02:34.5]} 7... Bxc5 {[%clk 0:02:53.6]} 8. b4 {[%clk 0:02:34.5]}
8... Be7 {[%clk 0:02:52.9]} 9. cxd5 {[%clk 0:02:34.2]} 9... Nxd5 {[%clk
0:02:52.2]} 10. Nxd5 {[%clk 0:02:33.5]} 10... exd5 {[%clk 0:02:52.3]} 11. Bb2
{[%clk 0:02:30.2]} 11... Bg4 {[%clk 0:02:50.1]} 12. Be2 {[%clk 0:02:25.9]} 12...
Nc6 {[%clk 0:02:45.2]} 13. O-O {[%clk 0:02:25.4]} 13... Qd7 {[%clk 0:02:25.5]}
14. Qb3 {[%clk 0:02:17.5]} 14... Rad8 {[%clk 0:02:23.9]} 15. Rfd1 {[%clk
0:02:17.2]} 15... Qe6 {[%clk 0:02:16.4]} 16. h3 {[%clk 0:02:12.3]} 16... Bh5
{[%clk 0:02:12.5]} 17. Rd2 {[%clk 0:02:02.3]} 17... Bf6 {[%clk 0:02:03.9]} 18.
Rad1 {[%clk 0:01:57.5]} 18... Bxb2 {[%clk 0:02:01.7]} 19. Qxb2 {[%clk
0:01:58.4]} 19... Rd7 {[%clk 0:01:52]} 20. Nd4 {[%clk 0:01:52.3]} 20... Nxd4
{[%clk 0:01:50.8]} 21. Bxh5 {[%clk 0:01:40.6]} 21... Nb5 {[%clk 0:01:39.9]} 22.
Bf3 {[%clk 0:01:36.2]} 22... Rfd8 {[%clk 0:01:37.8]} 23. a4 {[%clk 0:01:26.3]}
23... Nc7 {[%clk 0:01:35.6]} 24. Bg4 {[%clk 0:01:24.4]} 24... f5 {[%clk
0:01:34.5]} 25. Bf3 {[%clk 0:01:25.1]} 25... Ne8 {[%clk 0:01:31.8]} 26. Rc2
{[%clk 0:01:12.5]} 26... Nf6 {[%clk 0:01:30.8]} 27. Qd4 {[%clk 0:01:10]} 27...
Ne4 {[%clk 0:01:28.6]} 28. Qxa7 {[%clk 0:01:07.7]} 28... b5 {[%clk 0:01:24.4]}
29. Qa5 {[%clk 0:00:59.2]} 29... bxa4 {[%clk 0:01:24.1]} 30. Qxa4 {[%clk
0:00:59.4]} 30... Qg6 {[%clk 0:01:23.4]} 31. Qb5 {[%clk 0:00:48.3]} 31... Ng5
{[%clk 0:01:22.3]} 32. Bxd5+ {[%clk 0:00:41.2]} 32... Kh8 {[%clk 0:01:22.4]} 33.
Qxd7 {[%clk 0:00:38.7]} 33... Nxh3+ {[%clk 0:01:19.8]} 34. Kf1 {[%clk
0:00:36.3]} 1-0